fUSD/lending_fUSD_20260517
["ID","MTS","AMOUNT","RATE_DAILY","PERIOD"]
[422496051,1778999441000,-500.0,0.00025473,2]
[422496080,1778999441000,-500.0,0.00025473,2]
[422496093,1778999441000,-500.0,0.00025473,2]
[422496083,1778999441000,-500.0,0.00025473,2]
[422496084,1778999441000,-500.0,0.00025473,2]
[422496082,1778999441000,-500.0,0.00025473,2]
[422496087,1778999441000,-500.0,0.00025473,2]
[422496088,1778999441000,-500.0,0.00025473,2]
[422496090,1778999441000,-500.0,0.00025473,2]
[422496089,1778999441000,-500.0,0.00025473,2]
[422496094,1778999441000,-500.0,0.00025473,2]
[422496096,1778999441000,-500.0,0.00025473,2]
[422496097,1778999441000,-500.0,0.00025473,2]
[422496106,1778999441000,-850.996417,0.00025473,2]
[422496085,1778999441000,-500.0,0.00025473,2]
[422496098,1778999441000,-500.0,0.00025473,2]
[422496103,1778999441000,-500.0,0.00025473,2]
[422496105,1778999441000,-500.0,0.00025473,2]
[422496095,1778999441000,-500.0,0.00025473,2]
[422496099,1778999441000,-850.996417,0.00025473,2]
[422496100,1778999441000,-500.0,0.00025473,2]
[422496102,1778999441000,-500.0,0.00025473,2]
[422496101,1778999441000,-500.0,0.00025473,2]
[422496108,1778999441000,-500.0,0.00025473,2]
[422496107,1778999441000,-500.0,0.00025473,2]
[422496109,1778999441000,-500.0,0.00025473,2]
[422496110,1778999441000,-176.847513,0.00025473,2]
[422496111,1778999441000,-500.0,0.00025473,2]
[422496049,1778999441000,-500.0,0.00025473,2]
[422496104,1778999441000,-176.847513,0.00025473,2]
[422496086,1778999441000,-850.996417,0.00025473,2]
[422496112,1778999441000,-500.0,0.00025473,2]
[422496081,1778999441000,-500.0,0.00025473,2]
[422496092,1778999441000,-850.996417,0.00025473,2]
[422496054,1778999441000,-500.0,0.00025473,2]
[422496052,1778999441000,-500.0,0.00025473,2]
[422496056,1778999441000,-500.0,0.00025473,2]
[422496055,1778999441000,-500.0,0.00025473,2]
[422496057,1778999441000,-500.0,0.00025473,2]
[422496058,1778999441000,-500.0,0.00025473,2]
[422496063,1778999441000,-500.0,0.00025473,2]
[422496059,1778999441000,-500.0,0.00025473,2]
[422496062,1778999441000,-500.0,0.00025473,2]
[422496061,1778999441000,-500.0,0.00025473,2]
[422496060,1778999441000,-500.0,0.00025473,2]
[422496064,1778999441000,-500.0,0.00025473,2]
[422496065,1778999441000,-500.0,0.00025473,2]
[422496050,1778999441000,-500.0,0.00025473,2]
[422496068,1778999441000,-500.0,0.00025473,2]
[422496091,1778999441000,-500.0,0.00025473,2]
[422496079,1778999441000,-500.0,0.00025473,2]
[422496072,1778999441000,-500.0,0.00025473,2]
[422496077,1778999441000,-500.0,0.00025473,2]
[422496066,1778999441000,-500.0,0.00025473,2]
[422496071,1778999441000,-500.0,0.00025473,2]
[422496073,1778999441000,-500.0,0.00025473,2]
[422496069,1778999441000,-500.0,0.00025473,2]
[422496076,1778999441000,-500.0,0.00025473,2]
[422496078,1778999441000,-500.0,0.00025473,2]
[422496067,1778999441000,-500.0,0.00025473,2]
[422496075,1778999441000,-500.0,0.00025473,2]
[422496070,1778999441000,-500.0,0.00025473,2]
[422496074,1778999441000,-500.0,0.00025473,2]
[422496154,1778999442000,-500.0,0.00025479,2]
[422496151,1778999442000,-500.0,0.00025479,2]
[422496152,1778999442000,-500.0,0.00025479,2]
[422496153,1778999442000,-407.36389492,0.00025479,2]
[422496147,1778999442000,-191.396274,0.00025473,2]
[422496144,1778999442000,-191.396274,0.00025473,2]
[422496148,1778999442000,-2019.89949839,0.00025478,2]
[422496146,1778999442000,-191.396274,0.00025473,2]
[422496149,1778999442000,-500.0,0.00025479,2]
[422496175,1778999442000,-500.0,0.0002559,2]
[422496156,1778999442000,-500.0,0.00025479,2]
[422496150,1778999442000,-366.6891395,0.00025479,2]
[422496157,1778999442000,-500.0,0.00025479,2]
[422496162,1778999442000,-500.0,0.00025479,2]
[422496160,1778999442000,-500.0,0.00025479,2]
[422496161,1778999442000,-500.0,0.00025479,2]
[422496158,1778999442000,-614.03382431,0.00025479,2]
[422496168,1778999442000,-2000.0,0.000255,2]
[422496163,1778999442000,-558.07,0.0002548,2]
[422496165,1778999442000,-500.0,0.00025499,2]
[422496164,1778999442000,-639.10046063,0.00025499,2]
[422496167,1778999442000,-33183.3746,0.000255,2]
[422496166,1778999442000,-500.0,0.00025499,2]
[422496173,1778999442000,-477.99,0.00025589,2]
[422496170,1778999442000,-213.47505599,0.00025538,2]
[422496169,1778999442000,-5530.0,0.000255,3]
[422496145,1778999442000,-260.765126,0.00025473,2]
[422496159,1778999442000,-574.23113137,0.00025479,2]
[422496140,1778999442000,-260.765126,0.00025473,2]
[422496129,1778999442000,-157.97419088,0.00025473,2]
[422496139,1778999442000,-217.688158,0.00025473,2]
[422496119,1778999442000,-500.0,0.00025473,2]
[422496120,1778999442000,-210.259162,0.00025473,2]
[422496118,1778999442000,-500.0,0.00025473,2]
[422496116,1778999442000,-176.847513,0.00025473,2]
[422496113,1778999442000,-500.0,0.00025473,2]
[422496117,1778999442000,-500.0,0.00025473,2]
[422496114,1778999442000,-500.0,0.00025473,2]
[422496115,1778999442000,-500.0,0.00025473,2]
[422496121,1778999442000,-176.847513,0.00025473,2]
[422496123,1778999442000,-1196.253496,0.00025473,2]
[422496125,1778999442000,-1196.253496,0.00025473,2]
[422496124,1778999442000,-1196.253496,0.00025473,2]
[422496122,1778999442000,-1196.253496,0.00025473,2]
[422496126,1778999442000,-156.0,0.00025473,2]
[422496127,1778999442000,-156.0,0.00025473,2]
[422496130,1778999442000,-2786.56284,0.00025473,2]
[422496128,1778999442000,-156.0,0.00025473,2]
[422496131,1778999442000,-2786.56284,0.00025473,2]
[422496132,1778999442000,-2786.56284,0.00025473,2]
[422496135,1778999442000,-217.688158,0.00025473,2]
[422496134,1778999442000,-217.688158,0.00025473,2]
[422496136,1778999442000,-4083.1930624,0.00025473,2]
[422496137,1778999442000,-217.688158,0.00025473,2]
[422496138,1778999442000,-260.765126,0.00025473,2]
[422496143,1778999442000,-260.765126,0.00025473,2]
[422496142,1778999442000,-151.0,0.00025473,2]
[422496141,1778999442000,-191.396274,0.00025473,2]
[422496133,1778999442000,-2786.56284,0.00025473,2]
[422496172,1778999442000,-2405.55389864,0.00025578,2]
[422496155,1778999442000,-500.0,0.00025479,2]
[422496177,1778999442000,-151.0,0.00025597,7]
[422496209,1778999442000,-159.86,0.00025742,2]
[422496219,1778999442000,-2000.0,0.00025814,2]
[422496212,1778999442000,-3531.97,0.00025786,2]
[422496208,1778999442000,-477.99,0.00025731,2]
[422496211,1778999442000,-209.4,0.00025786,2]
[422496214,1778999442000,-2900.68,0.00025786,2]
[422496210,1778999442000,-455.28,0.00025786,2]
[422496217,1778999442000,-2000.0,0.00025814,2]
[422496216,1778999442000,-2000.0,0.00025814,2]
[422496215,1778999442000,-1612.97,0.000258,7]
[422496218,1778999442000,-2000.0,0.00025814,2]
[422496213,1778999442000,-1263.59,0.00025786,2]
[422496220,1778999442000,-2000.0,0.00025814,2]
[422496223,1778999442000,-2000.0,0.00025814,2]
[422496222,1778999442000,-2000.0,0.00025814,2]
[422496226,1778999442000,-2000.0,0.00025814,2]
[422496225,1778999442000,-2000.0,0.00025814,2]
[422496224,1778999442000,-2000.0,0.00025814,2]
[422496230,1778999442000,-2000.0,0.00025814,2]
[422496228,1778999442000,-2000.0,0.00025814,2]
[422496227,1778999442000,-2000.0,0.00025814,2]
[422496229,1778999442000,-2000.0,0.00025814,2]
[422496233,1778999442000,-2000.0,0.00025814,2]
[422496234,1778999442000,-2000.0,0.00025814,2]
[422496232,1778999442000,-2000.0,0.00025814,2]
[422496235,1778999442000,-2000.0,0.00025814,2]
[422496171,1778999442000,-477.99,0.00025542,2]
[422496206,1778999442000,-11016.55574828,0.00025727,2]
[422496200,1778999442000,-500.0,0.0002569,2]
[422496221,1778999442000,-2000.0,0.00025814,2]
[422496204,1778999442000,-1986.66436607,0.00025699,2]
[422496205,1778999442000,-589.72750664,0.00025699,2]
[422496181,1778999442000,-200.0,0.000256,2]
[422496182,1778999442000,-151.0,0.00025688,7]
[422496180,1778999442000,-2000.0,0.000256,2]
[422496174,1778999442000,-500.0,0.0002559,2]
[422496176,1778999442000,-500.0,0.0002559,2]
[422496178,1778999442000,-300.0,0.00025599,10]
[422496184,1778999442000,-300.0,0.0002569,10]
[422496194,1778999442000,-500.0,0.0002569,2]
[422496195,1778999442000,-500.0,0.0002569,2]
[422496183,1778999442000,-151.0,0.00025688,7]
[422496185,1778999442000,-300.0,0.0002569,10]
[422496192,1778999442000,-500.0,0.0002569,2]
[422496186,1778999442000,-500.0,0.0002569,2]
[422496179,1778999442000,-300.0,0.00025599,10]
[422496201,1778999442000,-500.0,0.0002569,2]
[422496202,1778999442000,-380.62,0.0002569,2]
[422496203,1778999442000,-204.0,0.00025695,2]
[422496199,1778999442000,-500.0,0.0002569,2]
[422496191,1778999442000,-500.0,0.0002569,2]
[422496198,1778999442000,-500.0,0.0002569,2]
[422496207,1778999442000,-478.00114585,0.00025731,2]
[422496196,1778999442000,-214.54593545,0.0002569,2]
[422496193,1778999442000,-500.0,0.0002569,2]
[422496189,1778999442000,-500.0,0.0002569,2]
[422496190,1778999442000,-500.0,0.0002569,2]
[422496188,1778999442000,-500.0,0.0002569,2]
[422496187,1778999442000,-500.0,0.0002569,2]
[422496197,1778999442000,-500.0,0.0002569,2]
[422496278,1778999443000,-2000.0,0.00025943,2]
[422496281,1778999443000,-2000.0,0.00025943,2]
[422496275,1778999443000,-2000.0,0.00025943,2]
[422496276,1778999443000,-2000.0,0.00025943,2]
[422496283,1778999443000,-2000.0,0.00025943,2]
[422496266,1778999443000,-2000.0,0.00025905,2]
[422496271,1778999443000,-2000.0,0.00025943,2]
[422496273,1778999443000,-2000.0,0.00025943,2]
[422496272,1778999443000,-2000.0,0.00025943,2]
[422496270,1778999443000,-2000.0,0.00025943,2]
[422496268,1778999443000,-2000.0,0.00025905,2]
[422496279,1778999443000,-2000.0,0.00025943,2]
[422496280,1778999443000,-2000.0,0.00025943,2]
[422496274,1778999443000,-2000.0,0.00025943,2]
[422496289,1778999443000,-2000.0,0.00025943,2]
[422496277,1778999443000,-2000.0,0.00025943,2]
[422496285,1778999443000,-2000.0,0.00025943,2]
[422496295,1778999443000,-300.0,0.00025999,10]
[422496296,1778999443000,-27310.73338068,0.00026,10]
[422496284,1778999443000,-2000.0,0.00025943,2]
[422496286,1778999443000,-2000.0,0.00025943,2]
[422496293,1778999443000,-2000.0,0.00025943,2]
[422496290,1778999443000,-2000.0,0.00025943,2]
[422496287,1778999443000,-2000.0,0.00025943,2]
[422496291,1778999443000,-2000.0,0.00025943,2]
[422496288,1778999443000,-2000.0,0.00025943,2]
[422496292,1778999443000,-2000.0,0.00025943,2]
[422496294,1778999443000,-300.0,0.00025999,10]
[422496282,1778999443000,-2000.0,0.00025943,2]
[422496263,1778999443000,-2000.0,0.00025905,2]
[422496237,1778999443000,-2000.0,0.00025814,2]
[422496269,1778999443000,-2000.0,0.00025905,2]
[422496297,1778999443000,-215.0785988,0.00026,10]
[422496243,1778999443000,-2000.0,0.00025814,2]
[422496244,1778999443000,-2000.0,0.00025819,2]
[422496236,1778999443000,-2000.0,0.00025814,2]
[422496240,1778999443000,-2000.0,0.00025814,2]
[422496242,1778999443000,-2000.0,0.00025814,2]
[422496238,1778999443000,-2000.0,0.00025814,2]
[422496241,1778999443000,-2000.0,0.00025814,2]
[422496239,1778999443000,-2000.0,0.00025814,2]
[422496246,1778999443000,-2000.0,0.00025819,2]
[422496256,1778999443000,-200.0,0.00025856,2]
[422496252,1778999443000,-2000.0,0.00025819,2]
[422496257,1778999443000,-179.35748108,0.0002587,2]
[422496262,1778999443000,-2000.0,0.00025905,2]
[422496249,1778999443000,-2000.0,0.00025819,2]
[422496253,1778999443000,-2000.0,0.00025819,2]
[422496245,1778999443000,-2000.0,0.00025819,2]
[422496248,1778999443000,-2000.0,0.00025819,2]
[422496251,1778999443000,-2000.0,0.00025819,2]
[422496250,1778999443000,-2000.0,0.00025819,2]
[422496254,1778999443000,-2000.0,0.00025819,2]
[422496255,1778999443000,-2000.0,0.00025819,2]
[422496259,1778999443000,-2000.0,0.00025878,2]
[422496265,1778999443000,-2000.0,0.00025905,2]
[422496261,1778999443000,-2000.0,0.00025905,2]
[422496264,1778999443000,-2000.0,0.00025905,2]
[422496258,1778999443000,-2000.0,0.00025878,2]
[422496267,1778999443000,-2000.0,0.00025905,2]
[422496247,1778999443000,-2000.0,0.00025819,2]
[422496299,1778999443000,-208.48490792,0.00026,10]
[422496303,1778999443000,-200.0,0.00026115,2]
[422496370,1778999443000,-500.0,0.00026521,7]
[422496329,1778999443000,-600.0,0.000263,2]
[422496331,1778999443000,-170.2,0.00026302,2]
[422496337,1778999443000,-2000.0,0.00026385,2]
[422496347,1778999443000,-2000.0,0.00026385,2]
[422496348,1778999443000,-2000.0,0.00026385,2]
[422496349,1778999443000,-204.0,0.00026517,2]
[422496336,1778999443000,-2000.0,0.00026385,2]
[422496342,1778999443000,-2000.0,0.00026385,2]
[422496341,1778999443000,-2000.0,0.00026385,2]
[422496340,1778999443000,-2000.0,0.00026385,2]
[422496338,1778999443000,-2000.0,0.00026385,2]
[422496339,1778999443000,-2000.0,0.00026385,2]
[422496346,1778999443000,-2000.0,0.00026385,2]
[422496344,1778999443000,-2000.0,0.00026385,2]
[422496345,1778999443000,-2000.0,0.00026385,2]
[422496351,1778999443000,-500.0,0.00026521,7]
[422496353,1778999443000,-500.0,0.00026521,7]
[422496354,1778999443000,-500.0,0.00026521,7]
[422496358,1778999443000,-500.0,0.00026521,7]
[422496360,1778999443000,-500.0,0.00026521,7]
[422496355,1778999443000,-500.0,0.00026521,7]
[422496356,1778999443000,-500.0,0.00026521,7]
[422496352,1778999443000,-500.0,0.00026521,7]
[422496362,1778999443000,-500.0,0.00026521,7]
[422496364,1778999443000,-500.0,0.00026521,7]
[422496366,1778999443000,-500.0,0.00026521,7]
[422496368,1778999443000,-500.0,0.00026521,7]
[422496301,1778999443000,-208.20113081,0.00026,2]
[422496372,1778999443000,-500.0,0.00026521,7]
[422496333,1778999443000,-171.01479356,0.00026319,2]
[422496332,1778999443000,-2537.05039193,0.00026317,2]
[422496343,1778999443000,-2000.0,0.00026385,2]
[422496326,1778999443000,-170.2,0.00026299,2]
[422496302,1778999443000,-163.6,0.00026025,2]
[422496335,1778999443000,-2000.0,0.00026385,2]
[422496300,1778999443000,-5530.0,0.00026,5]
[422496298,1778999443000,-160.0,0.00026,10]
[422496304,1778999443000,-558.07,0.00026117,2]
[422496307,1778999443000,-159.32971314,0.00026143,2]
[422496305,1778999443000,-2494.55939289,0.00026126,2]
[422496306,1778999443000,-247.58,0.00026138,2]
[422496309,1778999443000,-247.6,0.00026149,2]
[422496321,1778999443000,-600.0,0.00026275,2]
[422496320,1778999443000,-170.2,0.00026264,2]
[422496308,1778999443000,-445.68,0.00026149,2]
[422496311,1778999443000,-164.53494655,0.00026156,2]
[422496312,1778999443000,-247.6,0.0002618,2]
[422496315,1778999443000,-337.93,0.00026232,2]
[422496319,1778999443000,-370.85,0.00026256,2]
[422496310,1778999443000,-445.68,0.0002615,2]
[422496334,1778999443000,-200.0,0.00026376,2]
[422496313,1778999443000,-445.68,0.00026182,2]
[422496330,1778999443000,-600.0,0.00026301,2]
[422496323,1778999443000,-215.0785988,0.00026296,2]
[422496327,1778999443000,-1045.76058024,0.000263,2]
[422496328,1778999443000,-742.67993687,0.000263,2]
[422496325,1778999443000,-962.4,0.00026296,2]
[422496324,1778999443000,-208.48490792,0.00026296,2]
[422496317,1778999443000,-342.31,0.00026256,2]
[422496316,1778999443000,-342.30499796,0.00026247,2]
[422496318,1778999443000,-342.31,0.00026256,2]
[422496314,1778999443000,-153.47,0.00026214,2]
[422496322,1778999443000,-160.0,0.00026296,2]
[422496424,1778999444000,-150.0,0.00027099,2]
[422496412,1778999444000,-500.0,0.00027096,2]
[422496425,1778999444000,-150.0,0.00027099,2]
[422496423,1778999444000,-164.95214832,0.00027099,4]
[422496427,1778999444000,-742.67993687,0.000271,2]
[422496426,1778999444000,-1045.76058024,0.000271,2]
[422496431,1778999444000,-300.0,0.00027122,10]
[422496422,1778999444000,-150.0,0.00027099,2]
[422496432,1778999444000,-296.25379635,0.00027123,2]
[422496420,1778999444000,-150.0,0.00027099,2]
[422496419,1778999444000,-150.0,0.00027099,2]
[422496430,1778999444000,-300.0,0.00027122,10]
[422496428,1778999444000,-2118.0,0.000271,7]
[422496429,1778999444000,-1105.18419788,0.00027122,10]
[422496455,1778999444000,-500.0,0.00027123,2]
[422496444,1778999444000,-500.0,0.00027123,2]
[422496433,1778999444000,-500.0,0.00027123,2]
[422496439,1778999444000,-500.0,0.00027123,2]
[422496438,1778999444000,-500.0,0.00027123,2]
[422496437,1778999444000,-500.0,0.00027123,2]
[422496435,1778999444000,-500.0,0.00027123,2]
[422496436,1778999444000,-150.0,0.00027123,2]
[422496440,1778999444000,-150.0,0.00027123,2]
[422496443,1778999444000,-500.0,0.00027123,2]
[422496441,1778999444000,-500.0,0.00027123,2]
[422496442,1778999444000,-218.63431577,0.00027123,2]
[422496451,1778999444000,-500.0,0.00027123,2]
[422496410,1778999444000,-174.0,0.00027096,2]
[422496434,1778999444000,-500.0,0.00027123,2]
[422496408,1778999444000,-2573.674008,0.0002701,2]
[422496448,1778999444000,-169.56546123,0.00027123,2]
[422496415,1778999444000,-150.0,0.00027099,2]
[422496381,1778999444000,-500.0,0.00026521,7]
[422496382,1778999444000,-500.0,0.00026521,7]
[422496377,1778999444000,-500.0,0.00026521,7]
[422496386,1778999444000,-268.12641939,0.00026521,7]
[422496388,1778999444000,-208.48490792,0.00026521,7]
[422496385,1778999444000,-500.0,0.00026521,7]
[422496387,1778999444000,-215.0785988,0.00026521,7]
[422496374,1778999444000,-500.0,0.00026521,7]
[422496384,1778999444000,-500.0,0.00026521,7]
[422496379,1778999444000,-500.0,0.00026521,7]
[422496390,1778999444000,-742.67993687,0.000266,2]
[422496392,1778999444000,-2000.0,0.00026625,2]
[422496389,1778999444000,-1045.76058024,0.000266,2]
[422496406,1778999444000,-1612.97,0.00027,7]
[422496391,1778999444000,-165.13,0.00026605,2]
[422496393,1778999444000,-200.0,0.00026639,2]
[422496395,1778999444000,-221.12,0.00026678,2]
[422496396,1778999444000,-1520.99735623,0.00026692,2]
[422496399,1778999444000,-1045.76058024,0.000268,2]
[422496398,1778999444000,-558.07,0.00026754,2]
[422496394,1778999444000,-2586.85809042,0.00026674,2]
[422496404,1778999444000,-2000.0,0.00027,2]
[422496417,1778999444000,-150.0,0.00027099,2]
[422496416,1778999444000,-150.19263054,0.00027099,2]
[422496402,1778999444000,-400.0,0.000269,9]
[422496414,1778999444000,-150.0,0.00027099,4]
[422496418,1778999444000,-150.0,0.00027099,2]
[422496403,1778999444000,-238.80654083,0.00026972,2]
[422496401,1778999444000,-366.3609505,0.00026879,2]
[422496447,1778999444000,-500.0,0.00027123,2]
[422496400,1778999444000,-742.67993687,0.000268,2]
[422496454,1778999444000,-250.0,0.00027123,2]
[422496495,1778999444000,-441.0,0.00027123,2]
[422496485,1778999444000,-441.0,0.00027123,2]
[422496486,1778999444000,-441.0,0.00027123,2]
[422496496,1778999444000,-459.0,0.00027123,2]
[422496484,1778999444000,-441.0,0.00027123,2]
[422496487,1778999444000,-441.0,0.00027123,2]
[422496488,1778999444000,-441.0,0.00027123,2]
[422496491,1778999444000,-150.0,0.00027123,2]
[422496493,1778999444000,-150.0,0.00027123,2]
[422496490,1778999444000,-441.0,0.00027123,2]
[422496494,1778999444000,-202.91860067,0.00027123,2]
[422496489,1778999444000,-441.0,0.00027123,2]
[422496492,1778999444000,-150.0,0.00027123,2]
[422496479,1778999444000,-441.0,0.00027123,2]
[422496497,1778999444000,-163.33619208,0.00027123,20]
[422496499,1778999444000,-500.0,0.00027123,2]
[422496503,1778999444000,-898.0,0.00027123,2]
[422496510,1778999444000,-235.03207444,0.00027123,2]
[422496511,1778999444000,-500.0,0.00027123,2]
[422496507,1778999444000,-898.0,0.00027123,2]
[422496508,1778999444000,-150.0,0.00027123,2]
[422496500,1778999444000,-898.0,0.00027123,2]
[422496505,1778999444000,-898.0,0.00027123,2]
[422496502,1778999444000,-500.0,0.00027123,2]
[422496504,1778999444000,-500.0,0.00027123,2]
[422496509,1778999444000,-898.0,0.00027123,2]
[422496506,1778999444000,-150.0,0.00027123,2]
[422496450,1778999444000,-500.0,0.00027123,2]
[422496498,1778999444000,-898.0,0.00027123,2]
[422496480,1778999444000,-441.0,0.00027123,2]
[422496501,1778999444000,-898.0,0.00027123,2]
[422496478,1778999444000,-441.0,0.00027123,2]
[422496481,1778999444000,-441.0,0.00027123,2]
[422496446,1778999444000,-500.0,0.00027123,2]
[422496449,1778999444000,-500.0,0.00027123,2]
[422496456,1778999444000,-150.0,0.00027123,2]
[422496452,1778999444000,-388.48208283,0.00027123,2]
[422496453,1778999444000,-500.0,0.00027123,2]
[422496458,1778999444000,-500.0,0.00027123,2]
[422496457,1778999444000,-250.0,0.00027123,2]
[422496460,1778999444000,-250.0,0.00027123,2]
[422496470,1778999444000,-441.0,0.00027123,2]
[422496459,1778999444000,-150.0,0.00027123,2]
[422496471,1778999444000,-441.0,0.00027123,2]
[422496462,1778999444000,-261.9823142,0.00027123,2]
[422496463,1778999444000,-150.0,0.00027123,2]
[422496445,1778999444000,-150.0,0.00027123,2]
[422496461,1778999444000,-500.0,0.00027123,2]
[422496468,1778999444000,-151.0,0.00027123,2]
[422496477,1778999444000,-441.0,0.00027123,2]
[422496474,1778999444000,-441.0,0.00027123,2]
[422496476,1778999444000,-441.0,0.00027123,2]
[422496475,1778999444000,-441.0,0.00027123,2]
[422496473,1778999444000,-441.0,0.00027123,2]
[422496483,1778999444000,-441.0,0.00027123,2]
[422496466,1778999444000,-151.0,0.00027123,2]
[422496467,1778999444000,-151.0,0.00027123,2]
[422496472,1778999444000,-441.0,0.00027123,2]
[422496464,1778999444000,-500.0,0.00027123,2]
[422496482,1778999444000,-441.0,0.00027123,2]
[422496469,1778999444000,-441.0,0.00027123,2]
[422496465,1778999444000,-500.0,0.00027123,2]
[422496555,1778999445000,-614.0,0.00027123,2]
[422496540,1778999445000,-898.0,0.00027123,2]
[422496545,1778999445000,-150.0,0.00027123,2]
[422496541,1778999445000,-911.0,0.00027123,2]
[422496544,1778999445000,-399.51761842,0.00027123,2]
[422496543,1778999445000,-500.0,0.00027123,2]
[422496548,1778999445000,-150.0,0.00027123,2]
[422496547,1778999445000,-150.0,0.00027123,2]
[422496546,1778999445000,-229.8585841,0.00027123,2]
[422496552,1778999445000,-614.0,0.00027123,2]
[422496538,1778999445000,-898.0,0.00027123,2]
[422496542,1778999445000,-500.0,0.00027123,2]
[422496557,1778999445000,-614.0,0.00027123,2]
[422496553,1778999445000,-614.0,0.00027123,2]
[422496551,1778999445000,-614.0,0.00027123,2]
[422496562,1778999445000,-614.0,0.00027123,2]
[422496554,1778999445000,-614.0,0.00027123,2]
[422496560,1778999445000,-614.0,0.00027123,2]
[422496559,1778999445000,-614.0,0.00027123,2]
[422496561,1778999445000,-614.0,0.00027123,2]
[422496558,1778999445000,-614.0,0.00027123,2]
[422496563,1778999445000,-614.0,0.00027123,2]
[422496550,1778999445000,-150.0,0.00027123,2]
[422496564,1778999445000,-614.0,0.00027123,2]
[422496556,1778999445000,-614.0,0.00027123,2]
[422496549,1778999445000,-200.0,0.00027123,2]
[422496521,1778999445000,-500.0,0.00027123,2]
[422496530,1778999445000,-500.0,0.00027123,2]
[422496566,1778999445000,-614.0,0.00027123,2]
[422496513,1778999445000,-500.0,0.00027123,2]
[422496523,1778999445000,-898.0,0.00027123,2]
[422496512,1778999445000,-898.0,0.00027123,2]
[422496518,1778999445000,-898.0,0.00027123,2]
[422496522,1778999445000,-500.0,0.00027123,2]
[422496516,1778999445000,-898.0,0.00027123,2]
[422496514,1778999445000,-898.0,0.00027123,2]
[422496519,1778999445000,-500.0,0.00027123,2]
[422496515,1778999445000,-500.0,0.00027123,2]
[422496517,1778999445000,-500.0,0.00027123,2]
[422496520,1778999445000,-500.0,0.00027123,2]
[422496525,1778999445000,-500.0,0.00027123,2]
[422496536,1778999445000,-898.0,0.00027123,2]
[422496537,1778999445000,-898.0,0.00027123,2]
[422496524,1778999445000,-500.0,0.00027123,2]
[422496535,1778999445000,-898.0,0.00027123,2]
[422496526,1778999445000,-898.0,0.00027123,2]
[422496532,1778999445000,-538.28826311,0.00027123,2]
[422496527,1778999445000,-500.0,0.00027123,2]
[422496534,1778999445000,-898.0,0.00027123,2]
[422496528,1778999445000,-371.02313261,0.00027123,2]
[422496531,1778999445000,-898.0,0.00027123,2]
[422496529,1778999445000,-898.0,0.00027123,2]
[422496533,1778999445000,-898.0,0.00027123,2]
[422496539,1778999445000,-898.0,0.00027123,2]
[422496565,1778999445000,-614.0,0.00027123,2]
[422496572,1778999445000,-614.0,0.00027123,2]
[422496568,1778999445000,-614.0,0.00027123,2]
[422496599,1778999445000,-150.0,0.00027242,4]
[422496594,1778999445000,-151.0,0.00027238,2]
[422496598,1778999445000,-153.533458,0.00027238,2]
[422496602,1778999445000,-164.95214832,0.00027281,4]
[422496603,1778999445000,-1254.65,0.00027295,2]